bitfinex/quotes_SOLUSD_20241214
["timestamp","ask_amount","ask_price","bid_price","bid_amount"]
[1734144576649,20.0,225.64,225.57,6.63865311]
[1734144577946,20.0,225.64,225.53,1.5655]
[1734144578149,23.776884,225.63,225.53,1.5655]
[1734144578555,23.776884,225.63,225.54,6.63865311]
[1734144580842,23.776884,225.63,225.53,1.5655]
[1734144581052,23.776884,225.63,225.53,8.20415311]
[1734144584959,23.776884,225.63,225.53,1.5655]
[1734144585160,23.776884,225.59,225.53,1.5655]
[1734144585548,20.0,225.59,225.53,1.5655]
[1734144585745,23.776884,225.61,225.53,1.5655]
[1734144590641,23.776884,225.63,225.53,8.20415311]
[1734144590845,20.0,225.63,225.55,6.63865311]
[1734144592550,20.0,225.63,225.53,1.5655]
[1734144592869,20.0,225.63,225.53,8.20415311]
[1734144598967,23.776884,225.62,225.53,1.5655]
[1734144599171,20.0,225.59,225.53,1.5655]
[1734144599873,23.776884,225.62,225.53,1.5655]
[1734144602367,20.0,225.59,225.53,1.5655]
[1734144602767,6.6486,225.61,225.53,1.5655]
[1734144609874,23.776884,225.6,225.53,1.5655]
[1734144613292,6.6492,225.59,225.53,1.5655]
[1734144615372,23.776884,225.58,225.53,1.5655]
[1734144617966,23.776884,225.56,225.48,1.6015]
[1734144618172,20.0,225.53,225.48,1.6015]
[1734144623587,9.2844584,225.61,225.49,6.63865311]
[1734144623770,9.2844584,225.61,225.51,6.63865311]
[1734144625374,9.2844584,225.61,225.48,1.6015]
[1734144625584,9.2844584,225.61,225.5,6.63865311]
[1734144625902,23.776884,225.6,225.5,6.63865311]
[1734144627688,23.776884,225.6,225.51,6.0633]
[1734144633377,2.68196659,225.59,225.51,6.0633]
[1734144634173,20.0,225.6,225.56,0.77921177]
[1734144634379,20.0,225.6,225.56,2.41961177]
[1734144636494,20.0,225.64,225.56,9.05826488]
[1734144636791,20.0,225.64,225.57,6.6171]
[1734144650705,26.6477,225.64,225.57,6.6171]
[1734144668312,20.0,225.66,225.57,6.6171]
[1734144668496,20.0,225.65,225.57,6.6171]
[1734144670012,20.0,225.65,225.57,6.7871]
[1734144672593,20.0,225.65,225.57,6.6171]
[1734144673713,26.6475,225.65,225.57,6.6171]
[1734144673893,23.776884,225.64,225.57,6.6171]
[1734144684403,26.6475,225.65,225.57,6.6171]
[1734144698434,6.648,225.63,225.57,6.6171]
[1734144704736,20.0,225.64,225.57,6.6171]
[1734144719144,2.69345624,225.66,225.57,6.6171]
[1734144724566,6.6477,225.64,225.57,6.6171]
[1734144724871,23.776884,225.63,225.57,6.6171]
[1734144726459,6.6477,225.64,225.57,6.6171]
[1734144731369,6.6477,225.64,225.55,1.52271911]
[1734144734365,6.6477,225.64,225.56,1.6413]
[1734144749472,23.776884,225.63,225.56,1.6413]
[1734144750563,50.424284,225.65,225.56,1.6413]
[1734144750772,63.719184,225.65,225.51,8.14365311]
[1734144750977,63.719184,225.65,225.51,1.505]
[1734144751573,20.0,225.64,225.51,1.505]
[1734144751895,20.0,225.6,225.51,1.505]
[1734144752195,23.776884,225.61,225.51,1.505]
[1734144752377,23.776884,225.61,225.51,8.14365311]
[1734144757178,21.73557835,225.64,225.37,0.5354916]
[1734144757179,25.0,225.51,225.37,0.5354916]
[1734144757387,23.776884,225.45,225.37,0.5354916]
[1734144757711,20.0,225.46,225.38,6.63865311]
[1734144757712,0.665,225.44,225.38,6.63865311]
[1734144757890,6.6515,225.51,225.4,12.81045311]
[1734144757891,6.638653,225.48,225.4,12.81045311]
[1734144758084,0.665,225.47,225.4,12.81045311]
[1734144759088,0.665,225.47,225.4,6.1718]
[1734144762785,0.665,225.48,225.43,6.63865311]
[1734144763022,0.665,225.5,225.43,6.63865311]
[1734144767808,0.665,225.5,225.42,6.63865311]
[1734144768914,0.665,225.5,225.41,6.63865311]
[1734144769497,0.665,225.5,225.4,12.81045311]
[1734144771396,0.665,225.5,225.41,6.63865311]
[1734144772333,0.665,225.5,225.4,12.81045311]
[1734144772695,0.665,225.5,225.41,6.63865311]
[1734144777705,30.428984,225.49,225.4,6.1718]
[1734144777910,0.665,225.48,225.4,12.81045311]
[1734144778126,6.6521,225.49,225.4,12.81045311]
[1734144778127,6.6521,225.49,225.41,6.63865311]
[1734144779427,0.665,225.48,225.4,12.81045311]
[1734144780102,0.665,225.48,225.4,6.1718]
[1734144780327,0.665,225.48,225.4,12.81045311]
[1734144780507,0.665,225.48,225.41,6.63865311]
[1734144783144,0.665,225.48,225.42,1.5021]
[1734144784338,0.665,225.48,225.43,6.63865311]
[1734144785312,0.665,225.48,225.44,6.63865311]
[1734144785519,0.665,225.52,225.47,6.63865311]
[1734144786621,6.6512,225.53,225.47,6.63865311]
[1734144788738,6.6512,225.53,225.48,6.63865311]
[1734144789839,0.665,225.56,225.49,6.63865311]
[1734144790033,0.665,225.56,225.5,6.63865311]
[1734144790416,0.665,225.6,225.53,6.63865311]
[1734144797627,0.665,225.6,225.54,6.63865311]
[1734144798158,20.0,225.58,225.54,6.63865311]
[1734144798654,0.665,225.6,225.53,6.63865311]
[1734144799245,7.3138,225.61,225.54,6.63865311]
[1734144799438,6.6488,225.61,225.55,6.63865311]
[1734144799631,20.0,225.65,225.56,6.63865311]
[1734144799823,20.0,225.61,225.55,6.63865311]
[1734144800436,20.0,225.62,225.55,6.63865311]
[1734144800638,0.665,225.61,225.55,6.63865311]
[1734144802144,0.665,225.61,225.51,2.30400163]
[1734144802338,0.665,225.61,225.52,6.63865311]
[1734144804831,30.425784,225.6,225.51,1.639]
[1734144805146,0.665,225.59,225.51,8.27765311]
[1734144807335,0.665,225.59,225.52,6.63865311]
[1734144809447,0.665,225.59,225.53,6.63865311]
[1734144811545,0.665,225.59,225.52,6.63865311]
[1734144815131,0.665,225.59,225.54,6.63865311]
[1734144815343,6.6489,225.6,225.54,6.63865311]
[1734144816056,20.665,225.61,225.54,6.63865311]
[1734144816631,0.665,225.61,225.54,6.63865311]
[1734144816833,24.441884,225.63,225.54,6.63865311]
[1734144820855,24.441884,225.63,225.55,6.63865311]
[1734144822853,24.441884,225.63,225.56,6.63865311]
[1734144823951,24.441884,225.63,225.55,6.63865311]
[1734144824155,24.441884,225.63,225.51,1.639]
[1734144824458,24.441884,225.63,225.54,6.63865311]
[1734144826145,0.665,225.63,225.56,6.63865311]
[1734144826351,0.665,225.63,225.57,6.63865311]
[1734144828269,0.665,225.63,225.56,6.63865311]
[1734144831163,0.665,225.63,225.52,20.0]
[1734144831361,0.665,225.63,225.54,6.63865311]
[1734144832569,0.665,225.63,225.52,20.0]
[1734144832867,0.665,225.63,225.46,2.22444775]
[1734144832868,23.776884,225.61,225.46,2.22444775]
[1734144833051,0.665,225.6,225.5,6.63865311]
[1734144833567,0.665,225.6,225.51,6.63865311]
[1734144833940,0.665,225.6,225.52,6.63865311]
[1734144834168,0.665,225.6,225.53,6.63865311]
[1734144844870,0.665,225.61,225.55,6.63865311]
[1734144845259,0.665,225.62,225.55,6.63865311]
[1734144845878,20.0,225.63,225.55,6.63865311]
[1734144846056,0.665,225.62,225.55,6.63865311]
[1734144849864,0.665,225.65,225.59,6.63865311]
[1734144853583,0.665,225.65,225.59,6.63865311]
[1734144856073,0.665,225.65,225.55,20.0]
[1734144856396,0.665,225.67,225.61,6.63865311]
[1734144857581,0.665,225.67,225.62,6.63865311]
[1734144857767,0.665,225.69,225.62,6.63865311]
[1734144858975,0.665,225.71,225.64,6.63865311]
[1734144859172,0.665,225.71,225.65,6.63865311]
[1734144859487,0.665,225.71,225.66,6.63865311]
[1734144859982,0.665,225.72,225.66,6.63865311]
[1734144860189,0.665,225.72,225.6,0.66464847]
[1734144860190,0.665,225.72,225.65,6.63865311]
[1734144861171,0.665,225.72,225.64,6.63865311]
[1734144862096,0.665,225.72,225.63,6.63865311]
[1734144862284,30.422484,225.71,225.59,1.6081]
[1734144862587,0.665,225.7,225.61,6.63865311]
[1734144862785,0.665,225.7,225.62,6.63865311]
[1734144863989,0.665,225.7,225.64,6.63865311]
[1734144864801,0.665,225.7,225.65,6.63865311]
[1734144864976,0.665,225.72,225.65,6.63865311]
[1734144865292,0.665,225.72,225.64,6.63865311]
[1734144867891,0.665,225.72,225.59,2.2728732]
[1734144868091,0.665,225.72,225.64,6.63865311]
[1734144868771,0.665,225.72,225.65,6.63865311]
[1734144869981,0.665,225.72,225.66,6.63865311]
[1734144871377,0.665,225.72,225.59,2.2728732]
[1734144871378,4.19788753,225.77,225.69,6.63865311]
[1734144871681,0.665,225.76,225.69,6.63865311]
[1734144873283,0.665,225.76,225.64,20.0]
[1734144873500,7.3092,225.76,225.67,6.63865311]
[1734144874187,7.3092,225.76,225.64,20.0]
[1734144874388,23.776884,225.75,225.62,20.66451195]
[1734144874696,0.665,225.74,225.66,6.63865311]
[1734144875373,0.665,225.74,225.62,20.66451195]
[1734144875574,0.665,225.74,225.65,6.63865311]
[1734144875877,0.665,225.74,225.62,20.0]
[1734144876078,0.665,225.74,225.6,0.66464162]
[1734144876280,0.665,225.74,225.64,6.63865311]
[1734144876479,0.665,225.74,225.6,0.66464162]
[1734144876795,0.665,225.74,225.63,6.63865311]
[1734144877776,23.776884,225.73,225.59,6.73802968]
[1734144877975,23.776884,225.73,225.62,26.63865311]
[1734144877976,0.665,225.72,225.62,26.63865311]
[1734144878193,0.665,225.72,225.62,6.63865311]
[1734144878795,30.375584,225.71,225.6,6.63865311]
[1734144878984,0.665,225.7,225.6,6.63865311]
[1734144880000,7.311,225.7,225.6,6.63865311]
[1734144881382,25.306384,225.69,225.59,6.63865311]
[1734144881582,0.665,225.68,225.59,6.63865311]
[1734144882393,23.776884,225.67,225.54,12.74602968]
[1734144882595,0.665,225.68,225.6,6.63865311]
[1734144882896,0.665,225.66,225.59,6.63865311]
[1734144883098,0.665,225.68,225.59,6.63865311]
[1734144885379,0.665,225.68,225.54,6.74162968]
[1734144885581,0.665,225.68,225.59,6.63865311]
[1734144887513,20.0,225.67,225.59,6.63865311]
[1734144887683,0.665,225.66,225.59,6.63865311]
[1734144887886,0.665,225.66,225.54,6.74162968]
[1734144888188,0.665,225.66,225.58,6.63865311]
[1734144889586,0.665,225.66,225.54,6.74162968]
[1734144889900,0.665,225.66,225.58,6.63865311]
[1734144900503,36.461184,225.65,225.56,0.17]
[1734144900815,23.776884,225.63,225.53,6.63865311]
[1734144901012,0.665,225.62,225.53,6.63865311]
[1734144902111,30.424884,225.63,225.53,6.63865311]
[1734144902306,0.665,225.62,225.53,6.63865311]
[1734144902693,2.2778,225.62,225.53,6.63865311]
[1734144904404,2.2778,225.62,225.52,6.63865311]
[1734144906190,2.2778,225.62,225.54,6.63865311]
[1734144913318,2.2778,225.62,225.56,6.63865311]
[1734144913522,0.665,225.64,225.59,6.63865311]
[1734144913729,6.0369,225.65,225.59,6.63865311]
[1734144913904,0.665,225.64,225.59,6.63865311]
[1734144914228,0.665,225.64,225.58,6.63865311]
[1734144914416,0.665,225.64,225.53,20.0]
[1734144914616,0.665,225.64,225.55,6.63865311]
[1734144914928,0.665,225.64,225.53,20.0]
[1734144915135,0.665,225.64,225.55,6.63865311]
[1734144916156,7.3127,225.64,225.55,6.63865311]
[1734144917638,23.776884,225.63,225.53,6.63865311]
[1734144917823,0.665,225.62,225.53,6.63865311]
[1734144918741,0.665,225.62,225.49,20.0]
[1734144919050,0.665,225.62,225.53,6.63865311]
[1734144923035,0.665,225.62,225.49,20.0]
[1734144923036,0.665,225.62,225.52,6.63865311]
[1734144923534,0.665,225.62,225.51,6.63865311]
[1734144923735,1.6237,225.6,225.47,1.5948]
[1734144924044,0.665,225.59,225.49,6.63865311]
[1734144924251,29.938684,225.58,225.48,6.63865311]
[1734144924451,0.665,225.57,225.48,6.63865311]
[1734144931041,0.665,225.57,225.48,6.79523971]
[1734144931432,0.665,225.57,225.49,6.63865311]
[1734144933752,0.665,225.57,225.48,6.79523971]
[1734144934321,0.665,225.57,225.48,0.1565866]
[1734144934526,30.426984,225.56,225.48,0.1565866]
[1734144934860,0.665,225.55,225.48,0.1565866]
[1734144936118,0.665,225.55,225.49,6.63865311]
[1734144936323,0.665,225.57,225.49,6.63865311]
[1734144938350,0.665,225.57,225.48,6.79523971]
[1734144939855,0.665,225.57,225.48,0.1565866]
[1734144940060,0.665,225.57,225.48,6.79523971]
[1734144943558,0.665,225.57,225.48,0.1565866]
[1734144943856,0.665,225.57,225.48,6.79523971]
[1734144946241,0.665,225.57,225.48,0.1565866]
[1734144946643,6.6501,225.56,225.48,0.1565866]
[1734144946958,0.665,225.55,225.48,0.1565866]
[1734144953155,6.6507,225.54,225.48,0.1565866]
[1734144953360,0.665,225.53,225.48,0.1565866]
[1734144964653,0.665,225.53,225.45,6.55523871]
[1734144967696,0.665,225.53,225.47,6.63865311]
[1734144967863,20.0,225.55,225.5,6.63865311]
[1734144969074,0.665,225.57,225.5,6.63865311]
[1734144971887,0.665,225.57,225.44,0.66512138]
[1734144972079,0.665,225.57,225.5,6.63865311]
[1734144972473,0.665,225.57,225.49,6.63865311]
[1734144973183,0.665,225.57,225.5,6.63865311]
[1734144974363,0.665,225.57,225.46,0.66508264]
[1734144974574,0.665,225.57,225.5,6.63865311]
[1734144974789,0.665,225.57,225.49,6.63865311]
[1734144977288,0.665,225.57,225.47,0.17]
[1734144977483,0.665,225.57,225.48,6.63865311]
[1734144979000,6.6501,225.56,225.41,1.5584]
[1734144979171,0.665,225.55,225.44,6.63865311]
[1734144979497,0.665,225.55,225.45,6.63865311]
[1734144980396,0.665,225.55,225.42,20.0]
[1734144980565,0.665,225.55,225.45,6.63865311]
[1734144983364,23.776884,225.54,225.42,20.0]
[1734144983588,2.2296,225.53,225.43,6.63865311]
[1734144984961,2.2296,225.53,225.44,6.63865311]
[1734144990688,2.2296,225.53,225.45,6.63865311]
[1734145007607,0.665,225.56,225.47,6.63865311]
[1734145007906,0.665,225.56,225.49,6.63865311]
[1734145008681,0.665,225.57,225.5,6.63865311]
[1734145009106,0.665,225.57,225.49,6.63865311]
[1734145010289,0.665,225.57,225.48,6.63865311]
[1734145011391,0.665,225.57,225.43,20.17]
[1734145011608,0.665,225.57,225.48,6.63865311]
[1734145020190,7.9074,225.56,225.41,0.6651379]
[1734145020396,20.0,225.52,225.41,6.63865311]
[1734145020597,0.665,225.51,225.41,6.63865311]
[1734145022995,7.9074,225.5,225.37,5.79523667]
[1734145023201,0.665,225.49,225.41,6.63865311]
[1734145026921,0.665,225.49,225.43,6.63865311]
[1734145027111,7.9074,225.5,225.44,6.63865311]
[1734145027309,7.9074,225.5,225.45,6.63865311]
[1734145027623,7.9074,225.5,225.46,6.63865311]
[1734145028000,0.665,225.54,225.48,6.63865311]
[1734145028221,0.665,225.54,225.49,6.63865311]
[1734145028617,0.665,225.54,225.48,6.63865311]
[1734145029832,0.665,225.54,225.47,6.63865311]
[1734145033131,0.665,225.54,225.46,6.63865311]
[1734145033920,0.665,225.54,225.44,6.63865311]
[1734145034126,6.6509,225.53,225.44,6.63865311]
[1734145034315,0.665,225.52,225.44,6.63865311]
[1734145034747,0.665,225.52,225.43,6.63865311]
[1734145035247,0.665,225.52,225.44,6.63865311]
[1734145035422,0.665,225.52,225.45,6.63865311]
[1734145047154,0.665,225.52,225.43,6.63865311]
[1734145048456,0.665,225.52,225.37,6.69182968]
[1734145048646,6.6515,225.51,225.42,6.63865311]
[1734145048849,0.665,225.5,225.42,6.63865311]
[1734145054667,0.665,225.5,225.44,6.63865311]
[1734145063254,20.0,225.52,225.46,6.63865311]
[1734145063458,0.665,225.54,225.47,6.63865311]
[1734145063759,0.665,225.54,225.48,6.63865311]
[1734145064658,0.665,225.54,225.49,6.63865311]
[1734145064968,7.5672,225.55,225.5,6.63865311]
[1734145069373,1.5202,225.55,225.5,6.63865311]
[1734145072258,1.5202,225.55,225.49,6.63865311]
[1734145073651,0.665,225.58,225.49,6.63865311]
[1734145073856,0.665,225.58,225.5,6.63865311]
[1734145076455,0.665,225.58,225.49,6.63865311]
[1734145083676,0.665,225.58,225.48,6.63865311]
[1734145085691,0.665,225.58,225.49,6.63865311]
[1734145090875,7.3145,225.59,225.5,6.63865311]
[1734145095375,7.3145,225.59,225.45,20.0]
[1734145095576,7.3145,225.59,225.49,6.63865311]
[1734145098765,7.3145,225.59,225.53,6.63865311]
[1734145098766,0.665,225.59,225.53,6.63865311]
[1734145098966,5.0,225.73,225.56,6.63865311]
[1734145098967,8.2111,225.65,225.56,6.63865311]
[1734145099170,0.665,225.64,225.57,6.63865311]
[1734145100476,0.665,225.64,225.58,6.63865311]
[1734145100678,0.665,225.64,225.61,6.63865311]
[1734145100888,0.665,225.69,225.62,6.63865311]
[1734145102471,0.665,225.69,225.63,6.63865311]
[1734145102684,8.2111,225.7,225.56,0.66474153]
[1734145102685,8.2111,225.7,225.65,6.63865311]
[1734145102982,1.5784,225.7,225.66,6.63865311]
[1734145103180,0.665,225.74,225.66,6.63865311]
[1734145103382,0.665,225.74,225.67,6.63865311]
[1734145104379,0.665,225.74,225.72,6.63865311]
[1734145104684,8.2111,225.75,225.72,6.63865311]
[1734145104889,8.2111,225.75,225.71,6.63865311]
[1734145107315,1.5784,225.75,225.71,6.63865311]
[1734145107487,0.665,225.78,225.72,6.63865311]
[1734145107882,0.665,225.78,225.64,0.66452006]
[1734145107883,0.665,225.78,225.73,6.63865311]
[1734145108193,0.665,225.79,225.73,6.63865311]
[1734145109473,7.7818,225.8,225.75,6.63865311]
[1734145109787,0.665,225.82,225.77,6.63865311]
[1734145109997,10.50230368,225.85,225.77,6.63865311]
[1734145109998,0.665,225.84,225.77,6.63865311]
[1734145114483,0.665,225.86,225.8,6.63865311]
[1734145114790,0.665,225.86,225.81,6.63865311]
[1734145115094,0.665,225.89,225.83,6.63865311]
[1734145115593,0.665,225.89,225.77,0.66412725]
[1734145115594,0.665,225.9,225.85,6.63865311]
[1734145115797,0.665,225.94,225.86,6.63865311]
[1734145116298,3.2726266,225.94,225.86,6.63865311]
[1734145118207,20.0,225.92,225.86,6.63865311]
[1734145118497,0.665,225.91,225.86,6.63865311]
[1734145119199,0.665,225.91,225.84,6.63865311]
[1734145119381,0.665,225.91,225.85,6.63865311]
[1734145119883,0.665,225.93,225.85,6.63865311]
[1734145120078,20.0,225.92,225.85,6.63865311]
[1734145120286,0.665,225.91,225.85,6.63865311]
[1734145126423,0.665,225.91,225.84,6.63865311]
[1734145128296,0.665,225.91,225.77,20.0]
[1734145128610,0.665,225.91,225.79,0.17]
[1734145128611,20.0,225.87,225.79,0.17]
[1734145128788,0.665,225.86,225.79,0.17]
[1734145128983,0.665,225.86,225.78,6.63865311]
[1734145129201,0.665,225.86,225.79,6.63865311]
[1734145129609,0.665,225.86,225.8,6.63865311]
[1734145130196,20.0,225.87,225.81,6.63865311]
[1734145130396,20.0,225.87,225.82,6.63865311]
[1734145130905,0.665,225.92,225.85,6.63865311]
[1734145131110,0.665,225.92,225.86,6.63865311]
[1734145131405,0.665,225.93,225.86,6.63865311]
[1734145131902,0.665,225.93,225.77,12.14044905]
[1734145131903,0.665,225.93,225.85,6.63865311]
[1734145133708,0.665,225.93,225.86,6.63865311]
[1734145134025,0.665,225.94,225.86,6.63865311]
[1734145135024,6.6392,225.93,225.81,20.0]
[1734145135232,0.665,225.92,225.83,6.80865311]
[1734145135492,0.665,225.92,225.83,6.63865311]
[1734145138705,0.665,225.92,225.84,6.63865311]
[1734145139801,0.665,225.92,225.83,6.63865311]
[1734145141520,6.6392,225.93,225.83,6.63865311]
[1734145142502,0.665,225.94,225.85,6.63865311]
[1734145145299,0.665,225.94,225.83,6.63865311]
[1734145146722,7.3039,225.94,225.83,6.63865311]
[1734145147023,7.3039,225.94,225.81,20.0]
[1734145147024,7.3039,225.94,225.81,26.63865311]
[1734145147205,23.776884,225.93,225.81,20.0]
[1734145147517,0.665,225.92,225.8,26.63865311]
[1734145148518,0.665,225.92,225.82,6.63865311]
[1734145154124,23.776884,225.89,225.72,14.59330923]
[1734145154321,23.776884,225.87,225.74,6.63865311]
[1734145154634,0.665,225.86,225.74,6.63865311]
[1734145155427,7.3063,225.86,225.74,6.63865311]
[1734145156930,7.3063,225.86,225.72,14.59330923]
[1734145156931,25.427484,225.85,225.72,14.59330923]
[1734145157124,0.665,225.84,225.73,6.63865311]
[1734145160341,6.3004,225.83,225.73,6.63865311]
[1734145160633,0.665,225.82,225.73,6.63865311]
[1734145164133,0.665,225.82,225.72,6.63865311]
[1734145167626,0.665,225.82,225.74,6.63865311]
[1734145171246,0.665,225.82,225.72,6.63865311]
[1734145172924,0.665,225.82,225.7,20.0]
[1734145173126,0.665,225.82,225.73,6.63865311]
[1734145177755,0.665,225.82,225.75,6.63865311]
[1734145179256,0.665,225.82,225.73,6.63865311]
[1734145188957,6.3004,225.83,225.73,6.63865311]
[1734145189465,6.3004,225.83,225.75,6.63865311]
[1734145189962,6.3004,225.83,225.71,20.66434008]
[1734145190160,6.3004,225.83,225.74,6.63865311]
[1734145195670,0.665,225.82,225.74,6.63865311]
[1734145195867,6.3004,225.83,225.74,6.63865311]
[1734145196161,0.665,225.82,225.74,6.63865311]
[1734145197351,0.665,225.82,225.72,6.63865311]
[1734145198458,0.665,225.82,225.71,20.0]
[1734145198660,0.665,225.82,225.71,26.63865311]
[1734145201769,0.665,225.82,225.73,6.63865311]
[1734145201976,0.665,225.82,225.75,6.63865311]
[1734145202162,6.3004,225.83,225.77,6.63865311]
[1734145202470,1.6506,225.85,225.79,6.63865311]
[1734145203865,1.6506,225.85,225.78,6.63865311]
[1734145206563,0.665,225.84,225.73,20.0]
[1734145206758,0.665,225.84,225.76,6.63865311]
[1734145209562,1.6506,225.85,225.77,6.63865311]
[1734145209783,1.6506,225.85,225.78,6.63865311]
[1734145214094,0.665,225.84,225.74,20.0]
[1734145214391,0.665,225.84,225.74,6.63865311]
[1734145214593,6.6421,225.83,225.74,6.63865311]
[1734145214780,0.665,225.82,225.74,6.63865311]
[1734145218478,1.6506,225.85,225.76,6.63865311]
[1734145218664,2.3156,225.85,225.76,6.63865311]
[1734145219175,1.6506,225.85,225.78,6.63865311]
[1734145219784,5.98760039,225.87,225.78,6.63865311]
[1734145221858,5.98760039,225.87,225.79,6.63865311]
[1734145223062,6.2795,225.88,225.8,6.63865311]
[1734145224501,6.2795,225.88,225.83,6.63865311]
[1734145224798,6.3836,225.93,225.83,6.63865311]
[1734145228477,6.3836,225.93,225.82,6.63865311]
[1734145229690,6.3836,225.93,225.81,6.63865311]
[1734145242914,6.3836,225.93,225.79,20.0]
[1734145243205,6.3836,225.93,225.81,6.63865311]
[1734145248017,6.3836,225.93,225.79,20.66408517]
[1734145248187,6.3836,225.93,225.79,27.30273828]
[1734145248694,4.58610587,225.93,225.79,27.30273828]
[1734145253915,4.58610587,225.93,225.79,20.66408517]
[1734145254107,4.58610587,225.93,225.8,6.63865311]
[1734145255709,1.5086,225.91,225.77,20.0]
[1734145255911,1.5086,225.91,225.77,26.63865311]
[1734145256115,1.5086,225.91,225.78,6.63865311]
[1734145256816,6.6401,225.9,225.78,6.63865311]
[1734145257188,6.6401,225.9,225.77,26.63865311]
[1734145257434,6.6401,225.9,225.77,20.0]
[1734145257598,6.6401,225.9,225.77,26.63865311]
[1734145260903,6.6401,225.9,225.78,6.63865311]
[1734145263495,6.6401,225.9,225.77,27.30284231]
[1734145265706,6.1693,225.87,225.77,20.0]
[1734145265909,1.635,225.86,225.7,6.63865311]
[1734145266213,20.0,225.84,225.71,6.63865311]
[1734145266802,26.6419,225.84,225.71,6.63865311]
[1734145267599,26.6419,225.84,225.73,6.63865311]
[1734145267804,1.635,225.86,225.69,23.776884]
[1734145267805,1.635,225.86,225.77,6.63865311]
[1734145268001,1.635,225.86,225.79,6.63865311]
[1734145268505,1.635,225.86,225.78,6.63865311]
[1734145268708,1.635,225.86,225.79,6.63865311]
[1734145270936,6.1693,225.87,225.82,6.63865311]
[1734145273025,6.1693,225.87,225.81,6.63865311]
[1734145276748,1.5004,225.91,225.81,6.63865311]
[1734145276954,1.5004,225.91,225.82,6.63865311]
[1734145280743,1.5004,225.91,225.84,6.63865311]
[1734145281343,1.5004,225.91,225.83,6.63865311]
[1734145281575,1.5004,225.91,225.8,6.63865311]
[1734145282873,1.5004,225.91,225.81,6.63865311]
[1734145284533,1.5004,225.91,225.84,6.63865311]
[1734145288740,1.5004,225.91,225.83,6.63865311]
[1734145290175,6.6125,225.92,225.84,6.63865311]
[1734145297483,1.6532,225.96,225.86,6.63865311]
[1734145297770,1.6532,225.96,225.87,6.63865311]
[1734145298875,1.6532,225.96,225.89,6.63865311]
[1734145299177,1.6532,225.96,225.85,20.0]
[1734145299372,1.6532,225.96,225.82,6.63865311]
[1734145299571,1.6532,225.96,225.82,23.776884]
[1734145300169,6.6386,225.95,225.82,30.41553711]
[1734145300969,6.6386,225.95,225.83,6.63865311]
[1734145303180,6.6386,225.95,225.83,20.0]
[1734145303573,6.6386,225.95,225.82,6.63865311]
[1734145305983,6.6386,225.95,225.8,23.776884]
[1734145306289,6.6386,225.95,225.8,30.41553711]
[1734145307266,6.6392,225.93,225.8,30.41553711]
[1734145309672,6.6392,225.93,225.79,20.0]
[1734145309871,1.5911,225.92,225.79,26.63865311]
[1734145311672,1.5911,225.92,225.81,6.63865311]
[1734145328687,6.6398,225.91,225.79,26.63865311]
[1734145331708,6.6398,225.91,225.79,20.0]
[1734145337217,6.6398,225.91,225.8,6.63865311]
[1734145340309,6.6398,225.91,225.81,6.63865311]
[1734145346715,1.5911,225.92,225.83,6.63865311]
[1734145351613,1.5911,225.92,225.82,6.63865311]
[1734145351801,1.5911,225.92,225.81,6.63865311]
[1734145355620,1.5911,225.92,225.82,6.63865311]
[1734145359519,1.5911,225.92,225.83,26.63865311]
[1734145362733,1.5911,225.92,225.8,6.63865311]
[1734145363614,6.6398,225.91,225.76,5.12992968]
[1734145363809,6.6398,225.91,225.78,6.63865311]
[1734145364017,6.5766,225.9,225.78,6.63865311]
[1734145367032,6.5766,225.9,225.79,0.17]
[1734145369619,6.5766,225.9,225.78,6.63865311]